[Event "*** Titled Tuesday 3|2 Blitz"]
[Site "Chess.com"]
[Date "2017.03.07"]
[Round "3"]
[White "Vamostodorecto"]
[Black "AlexanderL"]
[Result "0-1"]
[WhiteElo "2381"]
[BlackElo "2589"]
[TimeControl "180+2"]
[EndTime "13:39:09 PST"]
[Termination "AlexanderL won by resignation"]

1. d4 {[%clk 0:03:02]} 1... e6 {[%clk 0:02:22.6]} 2. c4 {[%clk 0:03:00.8]} 2...
b6 {[%clk 0:02:22.4]} 3. a3 {[%clk 0:03:00.8]} 3... Bb7 {[%clk 0:02:21]} 4. Nc3
{[%clk 0:03:01.5]} 4... f5 {[%clk 0:02:20.7]} 5. d5 {[%clk 0:03:02.4]} 5... Nf6
{[%clk 0:02:21.2]} 6. g3 {[%clk 0:03:00.8]} 6... Bd6 {[%clk 0:02:08.9]} 7. Nf3
{[%clk 0:02:54.7]} 7... O-O {[%clk 0:02:07.7]} 8. Bg2 {[%clk 0:02:55.2]} 8... a5
{[%clk 0:01:51.2]} 9. O-O {[%clk 0:02:54.7]} 9... Na6 {[%clk 0:01:52.1]} 10. e4
{[%clk 0:02:39.6]} 10... fxe4 {[%clk 0:01:49]} 11. Ng5 {[%clk 0:02:39.4]} 11...
exd5 {[%clk 0:01:49.2]} 12. cxd5 {[%clk 0:02:38.9]} 12... Nc5 {[%clk 0:01:49.2]}
13. Ngxe4 {[%clk 0:02:35.3]} 13... Be5 {[%clk 0:01:43.9]} 14. Nxc5 {[%clk
0:02:32.9]} 14... bxc5 {[%clk 0:01:43.2]} 15. Qb3 {[%clk 0:02:21.9]} 15... Ba6
{[%clk 0:01:42.7]} 16. Re1 {[%clk 0:02:09.2]} 16... Bd4 {[%clk 0:01:35.1]} 17.
d6+ {[%clk 0:01:47.9]} 17... c4 {[%clk 0:01:36.1]} 18. Qd1 {[%clk 0:01:47.9]}
18... c5 {[%clk 0:01:37.2]} 19. Be3 {[%clk 0:01:38.8]} 19... Qb6 {[%clk
0:01:32.8]} 20. Qd2 {[%clk 0:00:57.2]} 20... Rae8 {[%clk 0:01:18.4]} 21. Rad1
{[%clk 0:00:54.9]} 21... Bxe3 {[%clk 0:01:14.7]} 22. Rxe3 {[%clk 0:00:54.8]}
22... Rxe3 {[%clk 0:01:14.1]} 23. Qxe3 {[%clk 0:00:50.5]} 23... Qxb2 {[%clk
0:01:10.5]} 24. h3 {[%clk 0:00:17.5]} 24... Re8 {[%clk 0:01:05.2]} 25. Qf3
{[%clk 0:00:14.2]} 25... Bb7 {[%clk 0:01:01.6]} 26. Qxb7 {[%clk 0:00:12.9]}
26... Qxc3 {[%clk 0:01:02.6]} 27. Bd5+ {[%clk 0:00:11.7]} 27... Kf8 {[%clk
0:00:58.7]} 28. Kg2 {[%clk 0:00:12.1]} 28... Qc2 {[%clk 0:00:53.6]} 29. Rf1
{[%clk 0:00:08.6]} 29... Nxd5 {[%clk 0:00:44.7]} 30. Qxd5 {[%clk 0:00:08.6]}
30... Qe4+ {[%clk 0:00:46.4]} 31. Qxe4 {[%clk 0:00:08.6]} 31... Rxe4 {[%clk
0:00:48.3]} 32. Kf3 {[%clk 0:00:09.9]} 32... Rd4 {[%clk 0:00:48.9]} 33. Rc1
{[%clk 0:00:11.1]} 33... Kf7 {[%clk 0:00:49.7]} 34. Ke3 {[%clk 0:00:12.1]} 34...
Ke6 {[%clk 0:00:50.6]} 35. Rb1 {[%clk 0:00:10.7]} 35... Kxd6 {[%clk 0:00:48.2]}
36. Rb6+ {[%clk 0:00:11.7]} 36... Kd5 {[%clk 0:00:49.5]} 37. Rb7 {[%clk
0:00:12.6]} 37... Kc6 {[%clk 0:00:50.6]} 38. Ra7 {[%clk 0:00:13]} 38... Rd3+
{[%clk 0:00:52]} 39. Ke4 {[%clk 0:00:12.2]} 39... Rxa3 {[%clk 0:00:53.1]} 40.
Ra6+ {[%clk 0:00:13.1]} 40... Kb5 {[%clk 0:00:53.5]} 41. Rd6 {[%clk 0:00:14]}
41... Rd3 {[%clk 0:00:54.2]} 42. Rxd3 {[%clk 0:00:10.2]} 42... cxd3 {[%clk
0:00:55.4]} 43. Kxd3 {[%clk 0:00:12.1]} 43... c4+ {[%clk 0:00:56.9]} 0-1

[Event "*** Titled Tuesday 3|2 Blitz"]
[Site "Chess.com"]
[Date "2017.03.07"]
[Round "3"]
[White "Marreuh"]
[Black "FrankieJay"]
[Result "0-1"]
[WhiteElo "2088"]
[BlackElo "2290"]
[TimeControl "180+2"]
[EndTime "13:39:11 PST"]
[Termination "FrankieJay won by resignation"]

1. e4 {[%clk 0:03:02]} 1... c5 {[%clk 0:03:00.9]} 2. Nf3 {[%clk 0:03:01.5]} 2...
d6 {[%clk 0:03:02]} 3. d4 {[%clk 0:03:02.6]} 3... cxd4 {[%clk 0:03:03.1]} 4.
Nxd4 {[%clk 0:03:04.5]} 4... Nf6 {[%clk 0:03:04.1]} 5. Nc3 {[%clk 0:03:06.1]}
5... a6 {[%clk 0:03:05.1]} 6. Bg5 {[%clk 0:03:07.3]} 6... Nbd7 {[%clk
0:03:05.4]} 7. Qe2 {[%clk 0:03:03.3]} 7... h6 {[%clk 0:03:04.1]} 8. Bh4 {[%clk
0:03:01.3]} 8... g6 {[%clk 0:03:04.2]} 9. O-O-O {[%clk 0:02:52.6]} 9... Bg7
{[%clk 0:02:44.7]} 10. f4 {[%clk 0:02:51.8]} 10... e5 {[%clk 0:02:42.9]} 11. Nf3
{[%clk 0:02:47.6]} 11... Qc7 {[%clk 0:02:26.9]} 12. Nd5 {[%clk 0:02:34.7]} 12...
Nxd5 {[%clk 0:02:27.5]} 13. exd5 {[%clk 0:02:35.6]} 13... O-O {[%clk 0:02:22.6]}
14. fxe5 {[%clk 0:02:34.6]} 14... Nxe5 {[%clk 0:02:22.6]} 15. Nxe5 {[%clk
0:02:31.6]} 15... Bxe5 {[%clk 0:02:22.7]} 16. Qd2 {[%clk 0:02:20.8]} 16... Bg7
{[%clk 0:02:10.7]} 17. Kb1 {[%clk 0:02:16.4]} 17... Bf5 {[%clk 0:02:10]} 18. Bd3
{[%clk 0:02:14.2]} 18... Qb6 {[%clk 0:01:59.5]} 19. c3 {[%clk 0:02:05.2]} 19...
Bxd3+ {[%clk 0:02:00.7]} 20. Qxd3 {[%clk 0:02:06.1]} 20... Rac8 {[%clk
0:02:00.3]} 21. Rhe1 {[%clk 0:01:56.9]} 21... Rxc3 {[%clk 0:01:54.6]} 22. Qd2
{[%clk 0:01:42.8]} 22... Rfc8 {[%clk 0:01:49.4]} 23. Bf2 {[%clk 0:01:34.8]}
23... Qb4 {[%clk 0:01:07.3]} 24. Re2 {[%clk 0:01:03.7]} 24... Qb5 {[%clk
0:00:46.1]} 25. Bd4 {[%clk 0:00:27.4]} 25... Bxd4 {[%clk 0:00:40.4]} 26. Qxd4
{[%clk 0:00:29.3]} 26... Qxe2 {[%clk 0:00:32.1]} 27. bxc3 {[%clk 0:00:29.9]}
27... Rxc3 {[%clk 0:00:20.1]} 28. Qxc3 {[%clk 0:00:20]} 28... Qxd1+ {[%clk
0:00:20.9]} 29. Kb2 {[%clk 0:00:21.2]} 29... Qxd5 {[%clk 0:00:21.9]} 30. Qc8+
{[%clk 0:00:21.6]} 30... Kg7 {[%clk 0:00:23.4]} 31. Kb1 {[%clk 0:00:21.7]} 31...
Qb5+ {[%clk 0:00:22.1]} 32. Ka1 {[%clk 0:00:21.5]} 32... Qf1+ {[%clk 0:00:23.2]}
33. Kb2 {[%clk 0:00:22.2]} 33... Qxg2+ {[%clk 0:00:24.8]} 34. Kb3 {[%clk
0:00:22.4]} 34... Qc6 {[%clk 0:00:26.2]} 35. Qh3 {[%clk 0:00:22]} 35... d5
{[%clk 0:00:26.2]} 36. a4 {[%clk 0:00:20.3]} 36... Qc4+ {[%clk 0:00:27.4]} 37.
Ka3 {[%clk 0:00:21]} 37... d4 {[%clk 0:00:28.7]} 38. a5 {[%clk 0:00:20.7]} 38...
Qc3+ {[%clk 0:00:28.9]} 39. Ka2 {[%clk 0:00:21.5]} 39... Qxh3 {[%clk 0:00:29.6]}
0-1

[Event "*** Titled Tuesday 3|2 Blitz"]
[Site "Chess.com"]
[Date "2017.03.07"]
[Round "3"]
[White "cheese111"]
[Black "Outsmiter"]
[Result "1-0"]
[WhiteElo "2273"]
[BlackElo "2080"]
[TimeControl "180+2"]
[EndTime "13:39:12 PST"]
[Termination "cheese111 won by resignation"]

1. e4 {[%clk 0:03:02]} 1... d6 {[%clk 0:03:01]} 2. d4 {[%clk 0:03:02]} 2... Nf6
{[%clk 0:03:02.3]} 3. Nc3 {[%clk 0:03:02.3]} 3... g6 {[%clk 0:03:03.3]} 4. Bg5
{[%clk 0:03:03.2]} 4... Bg7 {[%clk 0:03:03.6]} 5. Qd2 {[%clk 0:03:02.2]} 5... h6
{[%clk 0:03:04.8]} 6. Bf4 {[%clk 0:03:02.1]} 6... g5 {[%clk 0:03:03.9]} 7. Bg3
{[%clk 0:03:03.1]} 7... Nh5 {[%clk 0:03:04]} 8. Be2 {[%clk 0:03:03.3]} 8... Nxg3
{[%clk 0:03:03.1]} 9. hxg3 {[%clk 0:03:05.2]} 9... Nc6 {[%clk 0:03:03.7]} 10. d5
{[%clk 0:03:00.8]} 10... Nd4 {[%clk 0:02:50.6]} 11. Bd3 {[%clk 0:02:56.2]} 11...
e6 {[%clk 0:02:47]} 12. O-O-O {[%clk 0:02:53]} 12... Qf6 {[%clk 0:02:38.7]} 13.
f4 {[%clk 0:02:16.8]} 13... Bd7 {[%clk 0:02:17.8]} 14. Nf3 {[%clk 0:02:14.7]}
14... Nxf3 {[%clk 0:02:05.9]} 15. gxf3 {[%clk 0:02:16.6]} 15... gxf4 {[%clk
0:02:00.5]} 16. gxf4 {[%clk 0:02:16.3]} 16... O-O-O {[%clk 0:02:00.3]} 17. Rh5
{[%clk 0:02:03.8]} 17... Kb8 {[%clk 0:01:51.3]} 18. Rg1 {[%clk 0:01:46.6]} 18...
Rdg8 {[%clk 0:01:35.2]} 19. e5 {[%clk 0:01:35.3]} 19... Qe7 {[%clk 0:01:34]} 20.
Qh2 {[%clk 0:01:14.6]} 20... c6 {[%clk 0:01:09.9]} 21. dxe6 {[%clk 0:00:58.3]}
21... Bxe6 {[%clk 0:00:59.3]} 22. Rxg7 {[%clk 0:00:36]} 22... Rxg7 {[%clk
0:00:58.5]} 23. f5 {[%clk 0:00:19.3]} 23... Bxf5 {[%clk 0:00:56]} 24. Rxf5
{[%clk 0:00:18.2]} 24... d5 {[%clk 0:00:29]} 25. Ne2 {[%clk 0:00:18.1]} 25...
Rg5 {[%clk 0:00:20.4]} 26. Rxg5 {[%clk 0:00:12]} 26... Qxg5+ {[%clk 0:00:22.3]}
27. f4 {[%clk 0:00:13]} 27... Qg4 {[%clk 0:00:22.8]} 28. f5 {[%clk 0:00:09.4]}
28... h5 {[%clk 0:00:23.8]} 29. e6+ {[%clk 0:00:09.2]} 29... Kc8 {[%clk
0:00:21.1]} 30. exf7 {[%clk 0:00:05.6]} 30... Rf8 {[%clk 0:00:21.8]} 31. Qd6
{[%clk 0:00:04.8]} 31... Rxf7 {[%clk 0:00:21.4]} 32. Qe6+ {[%clk 0:00:05.9]}
32... Kc7 {[%clk 0:00:22.8]} 33. Qxf7+ {[%clk 0:00:06.7]} 33... Kb6 {[%clk
0:00:24.5]} 34. Qg6 {[%clk 0:00:07.4]} 34... Qf3 {[%clk 0:00:25]} 35. Qg1+
{[%clk 0:00:07.9]} 35... Kc7 {[%clk 0:00:25.2]} 36. Qg3+ {[%clk 0:00:08.9]}
36... Qxg3 {[%clk 0:00:26.3]} 37. Nxg3 {[%clk 0:00:10.8]} 37... h4 {[%clk
0:00:28.2]} 38. Nh1 {[%clk 0:00:11.9]} 1-0

[Event "*** Titled Tuesday 3|2 Blitz"]
[Site "Chess.com"]
[Date "2017.03.07"]
[Round "3"]
[White "DeviatkinAndrey"]
[Black "Jadro9"]
[Result "1/2-1/2"]
[WhiteElo "2535"]
[BlackElo "2392"]
[TimeControl "180+2"]
[EndTime "13:39:14 PST"]
[Termination "Game drawn by agreement"]

1. a3 {[%clk 0:03:01.9]} 1... e5 {[%clk 0:02:59.4]} 2. e4 {[%clk 0:02:59.8]}
2... Nf6 {[%clk 0:02:58.9]} 3. Nc3 {[%clk 0:03:01.3]} 3... d5 {[%clk 0:02:59.4]}
4. exd5 {[%clk 0:02:58.7]} 4... Nxd5 {[%clk 0:03:00]} 5. Bc4 {[%clk 0:03:00.1]}
5... Be6 {[%clk 0:02:54.9]} 6. Qf3 {[%clk 0:02:46]} 6... c6 {[%clk 0:02:55.4]}
7. Nge2 {[%clk 0:02:45.3]} 7... Bc5 {[%clk 0:02:54.3]} 8. Ne4 {[%clk 0:02:35.2]}
8... Be7 {[%clk 0:02:52.6]} 9. Qg3 {[%clk 0:02:35.6]} 9... O-O {[%clk 0:02:53]}
10. d3 {[%clk 0:02:34.6]} 10... Nd7 {[%clk 0:02:38.9]} 11. Bh6 {[%clk
0:02:34.2]} 11... Bf6 {[%clk 0:02:39.2]} 12. Nxf6+ {[%clk 0:02:09.6]} 12... Qxf6
{[%clk 0:02:38.8]} 13. Bd2 {[%clk 0:02:05.6]} 13... Qe7 {[%clk 0:02:21.2]} 14.
O-O {[%clk 0:02:04.7]} 14... b5 {[%clk 0:02:10.4]} 15. Bb3 {[%clk 0:02:03.9]}
15... f5 {[%clk 0:02:10.7]} 16. f4 {[%clk 0:02:03.1]} 16... e4 {[%clk 0:01:55]}
17. dxe4 {[%clk 0:02:03.5]} 17... fxe4 {[%clk 0:01:56.3]} 18. Nd4 {[%clk
0:02:04.7]} 18... Bf7 {[%clk 0:01:57.6]} 19. Nf5 {[%clk 0:01:07.6]} 19... Qf6
{[%clk 0:01:56]} 20. Bxd5 {[%clk 0:01:08.7]} 20... Qxf5 {[%clk 0:01:57.3]} 21.
Bc3 {[%clk 0:01:05]} 21... Nf6 {[%clk 0:01:58.4]} 22. Bxf7+ {[%clk 0:00:59.4]}
22... Rxf7 {[%clk 0:01:59.6]} 23. Rad1 {[%clk 0:01:01]} 23... Re8 {[%clk
0:01:58.4]} 24. Be5 {[%clk 0:01:00.5]} 24... Nd5 {[%clk 0:01:56.1]} 25. Rfe1
{[%clk 0:00:39.6]} 25... e3 {[%clk 0:01:55.1]} 26. Re2 {[%clk 0:00:36.6]} 26...
Nxf4 {[%clk 0:01:47.6]} 27. Bxf4 {[%clk 0:00:34.7]} 27... Qxf4 {[%clk
0:01:47.9]} 28. Qxf4 {[%clk 0:00:36.2]} 28... Rxf4 {[%clk 0:01:49]} 29. Rd3
{[%clk 0:00:33.4]} 29... Rfe4 {[%clk 0:01:48.7]} 30. g3 {[%clk 0:00:26]} 30...
a5 {[%clk 0:01:47.7]} 31. Kg2 {[%clk 0:00:27.1]} 31... R4e5 {[%clk 0:01:46.9]}
32. Kf3 {[%clk 0:00:27.7]} 32... Rf5+ {[%clk 0:01:31]} 33. Kg2 {[%clk
0:00:28.9]} 33... Rd5 {[%clk 0:01:32]} 34. Rxd5 {[%clk 0:00:26.3]} 34... cxd5
{[%clk 0:01:32.8]} 35. c3 {[%clk 0:00:28]} 35... b4 {[%clk 0:01:34.2]} 36. axb4
{[%clk 0:00:29.1]} 36... axb4 {[%clk 0:01:35.5]} 37. Kf3 {[%clk 0:00:30.8]}
37... bxc3 {[%clk 0:01:34.4]} 38. bxc3 {[%clk 0:00:31.9]} 38... Kf7 {[%clk
0:01:24.3]} 39. Rxe3 {[%clk 0:00:33.2]} 39... Rxe3+ {[%clk 0:01:25.4]} 40. Kxe3
{[%clk 0:00:34.3]} 40... Ke6 {[%clk 0:01:26.4]} 41. Kd4 {[%clk 0:00:34.2]} 41...
Kd6 {[%clk 0:01:27.6]} 42. h3 {[%clk 0:00:33.4]} 42... Ke6 {[%clk 0:01:22.6]}
43. Ke3 {[%clk 0:00:32.2]} 43... Ke5 {[%clk 0:01:04.1]} 44. Kd3 {[%clk
0:00:32.6]} 44... Ke6 {[%clk 0:00:43.9]} 1/2-1/2

[Event "*** Titled Tuesday 3|2 Blitz"]
[Site "Chess.com"]
[Date "2017.03.07"]
[Round "3"]
[White "Gordima"]
[Black "wnstop"]
[Result "1-0"]
[WhiteElo "2483"]
[BlackElo "2447"]
[TimeControl "180+2"]
[EndTime "13:39:16 PST"]
[Termination "Gordima won on time"]

1. Nf3 {[%clk 0:03:02]} 1... Nf6 {[%clk 0:02:54.9]} 2. c3 {[%clk 0:03:03.2]}
2... g6 {[%clk 0:02:55.1]} 3. d4 {[%clk 0:03:04.3]} 3... Bg7 {[%clk 0:02:56.4]}
4. Bf4 {[%clk 0:03:06]} 4... O-O {[%clk 0:02:57.4]} 5. e3 {[%clk 0:03:07.4]}
5... d6 {[%clk 0:02:58.4]} 6. h3 {[%clk 0:03:08]} 6... b6 {[%clk 0:02:59.6]} 7.
Be2 {[%clk 0:03:06.4]} 7... Bb7 {[%clk 0:03:00.7]} 8. O-O {[%clk 0:03:08]} 8...
Nbd7 {[%clk 0:03:01.7]} 9. a4 {[%clk 0:03:08.9]} 9... a6 {[%clk 0:03:02.2]} 10.
Bh2 {[%clk 0:03:09.4]} 10... c5 {[%clk 0:03:02.9]} 11. Nbd2 {[%clk 0:03:10.1]}
11... Ra7 {[%clk 0:03:01.3]} 12. Qb3 {[%clk 0:03:11.2]} 12... Qa8 {[%clk
0:02:54.6]} 13. Qa3 {[%clk 0:03:05]} 13... cxd4 {[%clk 0:02:50.5]} 14. exd4
{[%clk 0:03:03]} 14... Bh6 {[%clk 0:02:48.5]} 15. Nc4 {[%clk 0:03:00.6]} 15...
Nd5 {[%clk 0:02:41.9]} 16. Ne1 {[%clk 0:02:27.1]} 16... Bf4 {[%clk 0:02:32.2]}
17. Bf3 {[%clk 0:02:05.8]} 17... Bxh2+ {[%clk 0:02:31.7]} 18. Kxh2 {[%clk
0:02:07.7]} 18... Nf4 {[%clk 0:02:30.5]} 19. a5 {[%clk 0:01:58.6]} 19... Bxf3
{[%clk 0:02:24.8]} 20. Nxf3 {[%clk 0:01:59.2]} 20... b5 {[%clk 0:02:12.4]} 21.
Ne3 {[%clk 0:01:59.6]} 21... Nf6 {[%clk 0:02:03.8]} 22. c4 {[%clk 0:01:56.5]}
22... bxc4 {[%clk 0:02:03.1]} 23. Nxc4 {[%clk 0:01:57.7]} 23... Rc7 {[%clk
0:01:52.3]} 24. Nb6 {[%clk 0:01:42.9]} 24... Qe4 {[%clk 0:01:52.9]} 25. Qe3
{[%clk 0:01:43.5]} 25... Rc2 {[%clk 0:01:42.7]} 26. Qxe4 {[%clk 0:00:54.1]}
26... Nxe4 {[%clk 0:01:42.8]} 27. b4 {[%clk 0:00:55.4]} 27... Nxf2 {[%clk
0:01:37.8]} 28. Rac1 {[%clk 0:00:55.9]} 28... Rxc1 {[%clk 0:01:21.2]} 29. Rxc1
{[%clk 0:00:56.2]} 29... N2d3 {[%clk 0:01:22.2]} 30. Rb1 {[%clk 0:00:53.3]}
30... Ne6 {[%clk 0:01:08.7]} 31. b5 {[%clk 0:00:52.7]} 31... axb5 {[%clk
0:01:08.6]} 32. a6 {[%clk 0:00:52.8]} 32... Nc7 {[%clk 0:00:52.7]} 33. a7 {[%clk
0:00:53.7]} 33... b4 {[%clk 0:00:46]} 34. Rb3 {[%clk 0:00:52.7]} 34... Na8
{[%clk 0:00:32.2]} 35. Nd5 {[%clk 0:00:48.4]} 1-0

[Event "*** Titled Tuesday 3|2 Blitz"]
[Site "Chess.com"]
[Date "2017.03.07"]
[Round "3"]
[White "Schoenbrunn"]
[Black "HouseOfDurin"]
[Result "0-1"]
[WhiteElo "1831"]
[BlackElo "1870"]
[TimeControl "180+2"]
[EndTime "13:39:21 PST"]
[Termination "HouseOfDurin won on time"]

1. e4 {[%clk 0:03:02]} 1... c5 {[%clk 0:03:00.4]} 2. Nf3 {[%clk 0:03:01.5]} 2...
Nc6 {[%clk 0:03:01.8]} 3. d4 {[%clk 0:02:58.7]} 3... cxd4 {[%clk 0:03:03.7]} 4.
Nxd4 {[%clk 0:02:58]} 4... e5 {[%clk 0:03:05.2]} 5. Nb5 {[%clk 0:02:56.4]} 5...
d6 {[%clk 0:03:06.2]} 6. N1c3 {[%clk 0:02:33]} 6... a6 {[%clk 0:03:07.2]} 7. Na3
{[%clk 0:02:32.1]} 7... b5 {[%clk 0:03:08.7]} 8. Nd5 {[%clk 0:02:32.2]} 8... Be6
{[%clk 0:03:10.3]} 9. c4 {[%clk 0:01:43.4]} 9... b4 {[%clk 0:03:10.1]} 10. Nc2
{[%clk 0:01:42.2]} 10... a5 {[%clk 0:03:11.5]} 11. Nce3 {[%clk 0:01:24.7]} 11...
Nf6 {[%clk 0:02:58.8]} 12. Bd3 {[%clk 0:01:22.1]} 12... Be7 {[%clk 0:02:55.8]}
13. O-O {[%clk 0:01:22]} 13... O-O {[%clk 0:02:57.2]} 14. Bd2 {[%clk 0:01:04.1]}
14... Nd7 {[%clk 0:02:47.1]} 15. Nf5 {[%clk 0:00:58.4]} 15... Bxf5 {[%clk
0:02:30.7]} 16. exf5 {[%clk 0:00:58.6]} 16... Nc5 {[%clk 0:02:32.2]} 17. Be3
{[%clk 0:00:46.7]} 17... Nxd3 {[%clk 0:02:07.6]} 18. Qxd3 {[%clk 0:00:47.4]}
18... Bg5 {[%clk 0:01:27.1]} 19. Rad1 {[%clk 0:00:46.7]} 19... Bxe3 {[%clk
0:01:25.8]} 20. fxe3 {[%clk 0:00:44.1]} 20... Qg5 {[%clk 0:01:04.9]} 21. Rf3
{[%clk 0:00:37.9]} 21... Rad8 {[%clk 0:00:40.3]} 22. Rdf1 {[%clk 0:00:34.8]}
22... Rfe8 {[%clk 0:00:28]} 23. Rg3 {[%clk 0:00:35]} 23... Qh4 {[%clk
0:00:28.6]} 24. Rff3 {[%clk 0:00:31.2]} 24... e4 {[%clk 0:00:27.2]} 25. Qf1
{[%clk 0:00:21.5]} 25... exf3 {[%clk 0:00:27.6]} 26. Qxf3 {[%clk 0:00:22.6]}
26... Ne5 {[%clk 0:00:20.7]} 27. Qf2 {[%clk 0:00:22.7]} 27... Kh8 {[%clk
0:00:18.3]} 28. f6 {[%clk 0:00:22.3]} 28... g6 {[%clk 0:00:17.8]} 29. Ne7 {[%clk
0:00:19.6]} 29... Rxe7 {[%clk 0:00:18.6]} 30. fxe7 {[%clk 0:00:20]} 30... Qxe7
{[%clk 0:00:20.5]} 31. Qf4 {[%clk 0:00:19]} 31... Rc8 {[%clk 0:00:18.9]} 32. h4
{[%clk 0:00:19.4]} 32... Rxc4 {[%clk 0:00:19.2]} 33. Qf2 {[%clk 0:00:18.9]}
33... Qxh4 {[%clk 0:00:18.6]} 34. b3 {[%clk 0:00:17.3]} 34... Rc1+ {[%clk
0:00:19.2]} 0-1

[Event "*** Titled Tuesday 3|2 Blitz"]
[Site "Chess.com"]
[Date "2017.03.07"]
[Round "3"]
[White "TenisMaster"]
[Black "johnathan113"]
[Result "1-0"]
[WhiteElo "2598"]
[BlackElo "2354"]
[TimeControl "180+2"]
[EndTime "13:39:26 PST"]
[Termination "TenisMaster won by resignation"]

1. e4 {[%clk 0:03:02]} 1... g6 {[%clk 0:02:58.8]} 2. d4 {[%clk 0:03:02.1]} 2...
Nf6 {[%clk 0:03:00.2]} 3. e5 {[%clk 0:02:57.2]} 3... Nh5 {[%clk 0:03:01.3]} 4.
Nf3 {[%clk 0:02:56]} 4... d6 {[%clk 0:03:02.5]} 5. Bc4 {[%clk 0:02:53.9]} 5...
Nc6 {[%clk 0:02:55.1]} 6. Qe2 {[%clk 0:02:31]} 6... d5 {[%clk 0:02:41.5]} 7. Bb3
{[%clk 0:02:28.2]} 7... Bg4 {[%clk 0:02:41.4]} 8. c3 {[%clk 0:02:27.3]} 8... e6
{[%clk 0:02:38.2]} 9. h3 {[%clk 0:02:26.8]} 9... Bxf3 {[%clk 0:02:39.3]} 10.
Qxf3 {[%clk 0:02:28.6]} 10... Be7 {[%clk 0:02:29.5]} 11. Bh6 {[%clk 0:02:29]}
11... Bg5 {[%clk 0:02:25.5]} 12. Bxg5 {[%clk 0:02:23.8]} 12... Qxg5 {[%clk
0:02:27.4]} 13. Nd2 {[%clk 0:02:22.8]} 13... O-O {[%clk 0:02:22.7]} 14. g4
{[%clk 0:02:21.4]} 14... Ng7 {[%clk 0:02:13.1]} 15. h4 {[%clk 0:02:22.2]} 15...
Qe7 {[%clk 0:02:12]} 16. Qf6 {[%clk 0:02:07.2]} 16... Qxf6 {[%clk 0:02:00.9]}
17. exf6 {[%clk 0:02:09.1]} 17... Ne8 {[%clk 0:02:02.7]} 18. g5 {[%clk
0:02:09.9]} 18... h5 {[%clk 0:02:03.7]} 19. f4 {[%clk 0:02:04.3]} 19... Nd6
{[%clk 0:02:04.6]} 20. Bc2 {[%clk 0:02:00.4]} 20... b5 {[%clk 0:02:02.9]} 21.
Bd3 {[%clk 0:01:57.4]} 21... a5 {[%clk 0:02:02.4]} 22. a4 {[%clk 0:01:56.5]}
22... bxa4 {[%clk 0:01:58.6]} 23. Rxa4 {[%clk 0:01:55.1]} 23... Rfb8 {[%clk
0:02:00.2]} 24. Ra2 {[%clk 0:01:55.4]} 24... Rb6 {[%clk 0:01:54.7]} 25. Kd1
{[%clk 0:01:55.4]} 25... Rab8 {[%clk 0:01:26.4]} 26. Kc2 {[%clk 0:01:55.3]}
26... Nd8 {[%clk 0:01:22.3]} 27. Re1 {[%clk 0:01:53.2]} 27... Kf8 {[%clk
0:01:22]} 28. Nf3 {[%clk 0:01:54.1]} 28... Ke8 {[%clk 0:01:18]} 29. Ne5 {[%clk
0:01:54.7]} 29... N8b7 {[%clk 0:01:11.8]} 30. Nxg6 {[%clk 0:01:48.4]} 30... fxg6
{[%clk 0:01:08.1]} 31. Rxe6+ {[%clk 0:01:48.9]} 31... Kf8 {[%clk 0:01:03.2]} 32.
Bxg6 {[%clk 0:01:46.2]} 32... c5 {[%clk 0:00:52.8]} 33. Bxh5 {[%clk 0:00:54.9]}
33... cxd4 {[%clk 0:00:52.9]} 34. cxd4 {[%clk 0:00:55.9]} 34... Nd8 {[%clk
0:00:41]} 35. Re7 {[%clk 0:00:55.9]} 35... R8b7 {[%clk 0:00:32.7]} 36. Rxb7
{[%clk 0:00:54.5]} 36... N6xb7 {[%clk 0:00:30.5]} 37. Bf3 {[%clk 0:00:54.2]}
37... Ne6 {[%clk 0:00:29.1]} 38. Bxd5 {[%clk 0:00:53.8]} 38... Nxf4 {[%clk
0:00:27.5]} 39. Bc4 {[%clk 0:00:46.5]} 39... Nd6 {[%clk 0:00:25.9]} 40. b3
{[%clk 0:00:44]} 40... Nf5 {[%clk 0:00:24.3]} 41. Rxa5 {[%clk 0:00:42.3]} 41...
Nxd4+ {[%clk 0:00:17.9]} 42. Kc3 {[%clk 0:00:42.1]} 42... Nde2+ {[%clk
0:00:18.1]} 43. Kd2 {[%clk 0:00:40.8]} 43... Rd6+ {[%clk 0:00:18.9]} 44. Ke3
{[%clk 0:00:41.9]} 44... Rd8 {[%clk 0:00:17.9]} 45. Bxe2 {[%clk 0:00:42]} 1-0